Cogmind - Beta 13 @@@ ROGUE MODE // 2024.04.02 @ 14:29:30 Player: Jawaka Result: Destroyed by G-34 Mercenary with Small Laser Performance ------------- Evolutions (1) 500 Regions Visited (3) 600 Robots Destroyed (27) 135 Value Destroyed (608) 608 Prototype IDs (2) 40 Alien Tech Used (0) 0 Bonus (0) 0 TOTAL SCORE: 1883 Bonus ------- None Cogmind --------- Core Integrity 0/400 Matter 199/300 Energy 68/100 System Corruption 0% Temperature Cool (6) Movement Core (250) Ox4 Location -9/Materials Parts ------- > --- POWER (1) -------- (None) > --- PROPULSION (4) --- (None) > --- UTILITY (2) ------ Medium Storage Unit Improved Targeting Computer > --- WEAPON (2) ------- Light Assault Rifle Improved Assault Rifle > --- INVENTORY (10) --- Deuterium Engine Deuterium Engine Deuterium Engine Improved Targeting Computer Improved EM Shotgun Small Laser Datajack Hammer Peak State ------------ > --- POWER ------------ Deuterium Engine > --- PROPULSION ------- Cesium-ion Thruster Cesium-ion Thruster Cesium-ion Thruster Cesium-ion Thruster > --- UTILITY ---------- Medium Storage Unit Improved Targeting Computer > --- WEAPON ----------- Improved EM Shotgun Improved Assault Rifle > --- INVENTORY -------- Deuterium Engine Deuterium Engine Deuterium Engine Improved Targeting Computer Small Laser Light Assault Rifle Datajack Hammer Hammer [Rating: 25] Favorites ----------- Power Light Ion Engine Engine Light Ion Engine Propulsion Aluminum Leg Leg Aluminum Leg Flight Unit Cesium-ion Thruster Utility Medium Storage Unit Storage Medium Storage Unit Processor Signal Interpreter Weapon Hammer Energy Gun EM Pulse Gun Ballistic Gun Light Assault Rifle Impact Weapon Hammer Special Melee Weapon Datajack Build | -11 -10 -10 -9 ------- Run | Yrd Mat Min Mat Slots Evolved 2 | . . . 2 Power . | . . . . Propulsion 2 | . . . 2 Utility . | . . . . Weapon . | . . . . Parts Attached 38 | 5 14 1 18 Power 5 | 1 3 . 1 Engine 5 | 1 3 . 1 Core . | . . . . Reactor . | . . . . Propulsion 11 | 2 2 1 6 Treads . | . . . . Leg 7 | 2 2 1 2 Wheel . | . . . . Hover . | . . . . Flight 4 | . . . 4 Utility 4 | . 3 . 1 Device . | . . . . Storage 2 | . 2 . . Processor 2 | . 1 . 1 Hackware . | . . . . Protection . | . . . . Artifact . | . . . . Weapon 18 | 2 6 . 10 Energy Gun 6 | 2 1 . 3 Energy Cannon . | . . . . Ballistic Gun 6 | . 2 . 4 Ballistic Cannon . | . . . . Launcher . | . . . . Special Weapon . | . . . . Impact Weapon 4 | . 2 . 2 Slashing Weapon . | . . . . Piercing Weapon . | . . . . Special Melee Weapon 2 | . 1 . 1 Unidentified Prototypes 2 | . . . 2 Parts Lost 11 | . 6 . 5 Power 2 | . 1 . 1 Propulsion 6 | . 2 . 4 Utility . | . . . . Weapon 3 | . 3 . . Highest Loss Streak 5 | . 5 . 5 To Critical Strikes . | . . . . Average Slot Usage (%) 91 | . 92 100 88 Engine 12 | . 13 14 10 Leg 21 | . 24 28 16 Flight 8 | . . . 18 Storage 12 | . 13 14 11 Processor 11 | . 11 14 11 Energy Gun 8 | . 15 . 6 Ballistic Gun 9 | . 10 . 10 Impact Weapon 6 | . 1 28 3 Naked Turns . | . . . . Heaviest Build 25 | 7 17 17 25 Greatest Support 40 | 20 20 20 40 Greatest Overweight (x) 7 | . 3 . 7 Average Overweight (x) . | . . . . Largest Inventory Capacity 10 | 5 10 10 10 Average Capacity 9 | 5 8 10 10 Most Carried 10 | 5 5 7 10 Average Carried 5 | 2 2 6 8 Final Capacity 10 | 5 10 10 10 Final Carried 8 | 2 5 7 8 Class Distribution -------------------- 53% | Scavenger-Mutant 46% | Mutant Dominant Class ---------------- Mutant | -10/Materials Scavenger-Mutant | -10/Mines Mutant | -9/Materials Resources | -11 -10 -10 -9 ----------- Run | Yrd Mat Min Mat Matter Collected 532 | . 364 30 138 Remotely . | . . . . Salvage Created 802 | . 301 152 349 Parts 59 | . 30 . 29 Haulers Intercepted . | . . . . Recyclers Shooed 1 | . 1 . . Parts Field Recycled . | . . . . Retrieved Matter . | . . . . Parts Self-Destructed . | . . . . Prevented . | . . . . Kills | -11 -10 -10 -9 ------- Run | Yrd Mat Min Mat Combat Hostiles Destroyed 20 | . 7 1 12 Melee 4 | . . . 4 Guns 15 | . 7 . 8 Classes Destroyed 7 | . 4 2 1 Tunneler 1 | . . 1 . Recycler 1 | . . 1 . Operator 1 | . 1 . . Watcher 4 | . 3 . 1 Swarmer 11 | . 4 . 7 Grunt 8 | . 3 1 4 Duelist 1 | . . . 1 Best Kill Streak 5 | . 4 1 5 Combat Bots Only 5 | . 4 1 5 Max Kills in Single Turn 2 | . 1 1 2 Gunslinging 1 | . . . 1 Exploded . | . . . . Melee 1 | . . . 1 Uniques/NPCs Destroyed . | . . . . Combat | -11 -10 -10 -9 -------- Run | Yrd Mat Min Mat Hostile Shots Fired 238 | . 89 10 139 Missed 56 | . 24 2 30 Damage Taken 1842 | . 579 106 1157 Core 590 | . 150 36 404 Absorbed by Shields . | . . . . Regen/Repaired (Parts) 86 | . . . 86 Core Remaining (%) 62 | 100 . 25 . Volleys Fired 65 | . 38 . 27 Largest 2 | . 2 . 2 Hottest 80 | . 80 . 68 Shots Fired 113 | . 63 . 50 Gun 113 | . 63 . 50 Cannon . | . . . . Launcher . | . . . . Special . | . . . . Kinetic 60 | . 26 . 34 Thermal 4 | . 4 . . Explosive . | . . . . Electromagnetic 49 | . 33 . 16 Robot Hit Streak 8 | . 7 . 8 Robot Miss Streak 7 | . 4 . 7 Penetration Max . | . . . . Secondary Targets 4 | . 1 . 3 Max Gunslinging Chain 1 | . 1 . 1 Shots Hit Robots 78 | . 29 6 43 Core Hits 35 | . 15 . 20 Critical Kills 1 | . 1 . . Critical Parts Destroyed 3 | . 1 2 . Critical Strikes 5 | . 2 2 1 Destroy 2 | . 2 . . Smash 3 | . . 2 1 Melee Attacks 28 | . 2 7 19 Impact 25 | . . 7 18 Slashing . | . . . . Piercing . | . . . . Sneak Attacks 2 | . . 2 . Combat Hostiles . | . . . . Follow-up Attacks 1 | . . 1 . Damage Inflicted 1302 | . 314 257 731 Guns 793 | . 311 . 482 Cannons . | . . . . Explosions 50 | . . . 50 Melee 455 | . . 257 198 Ramming 4 | . 3 . 1 Kinetic 460 | . 112 . 348 Thermal 73 | . 23 . 50 Explosive . | . . . . Electromagnetic 310 | . 176 . 134 Impact 455 | . . 257 198 Slashing . | . . . . Piercing . | . . . . Highest Corruption . | . . . . Average Corruption . | . . . . Corruption Purged . | . . . . Corruption Blocked . | . . . . Overload Shots . | . . . . Overflow Damage 126 | . . 126 . Projectiles . | . . . . Explosions . | . . . . Melee 126 | . . 126 . Knockbacks 2 | . . 1 1 Impact 2 | . . 1 1 Kinetic . | . . . . Secondary . | . . . . Self-Inflicted Damage 11 | . . . 11 Shots 1 | . . . 1 Rammed . | . . . . Targets Rammed 2 | . 1 . 1 Kicked 2 | . 1 . 1 Crushed . | . . . . Highest Temperature 96 | . 90 . 96 Average Temperature 27 | . 25 . 30 Received Heat Transfer 435 | . 111 60 264 Siege Activations . | . . . . Robots Corrupted . | . . . . Combat Hostiles . | . . . . Parts Fried 2 | . . 1 1 Impact Corruptions 4 | . . 4 . Robots Melted . | . . . . Combat Hostiles . | . . . . Parts Melted . | . . . . Heat Transferred 150 | . 50 . 100 Parts Sabotaged . | . . . . Parts Stolen . | . . . . Parts Stripped . | . . . . Power Chain Reactions 1 | . . . 1 Alert | -11 -10 -10 -9 ------- Run | Yrd Mat Min Mat Peak Influence 313 | . 226 127 313 Initial 87 | . . 87 49 Average 153 | . 147 119 182 Maximum Alert Level 1 | . 1 . 1 Low Security (%) 64 | 100 61 100 52 Level 1 35 | . 38 . 47 Level 2 . | . . . . Level 3 . | . . . . Level 4 . | . . . . Level 5 . | . . . . High Security . | . . . . Max Security . | . . . . Squads Dispatched 4 | . 1 . 3 Investigation 2 | . . . 2 Extermination . | . . . . Reinforcement 2 | . 1 . 1 Assault . | . . . . Garrison . | . . . . Intercept . | . . . . Searches Triggered . | . . . . Construction Impeded . | . . . . Haulers Reinforced . | . . . . Active Scanning Responses . | . . . . Cargo Convoy Interrupts . | . . . . Stealth | -11 -10 -10 -9 --------- Run | Yrd Mat Min Mat Distress Signals 2 | . 1 . 1 Communications Jammed . | . . . . Distress Signals . | . . . . Times Spotted 44 | . 17 4 23 Peak Tracking Total 10 | . 5 2 10 Tactical Retreats 1 | . 1 . . Traps | -11 -10 -10 -9 ------- Run | Yrd Mat Min Mat Traps Triggered 1 | . . . 1 Indirectly . | . . . . Trap Hack Attempts . | . . . . Triggered . | . . . . Disarmed . | . . . . Reprogrammed . | . . . . Reused . | . . . . Traps Extracted . | . . . . Installed . | . . . . Triggered . | . . . . Machines | -11 -10 -10 -9 ---------- Run | Yrd Mat Min Mat Machines Disabled 6 | . 3 . 3 Max in Single Turn 1 | . 1 . 1 Machines Repaired . | . . . . Machines Dismantled . | . . . . Machines Sabotaged . | . . . . Overloaded Fab Kills . | . . . . Hacking | -11 -10 -10 -9 --------- Run | Yrd Mat Min Mat Machines Accessed 6 | . 2 . 4 Terminals 3 | . 1 . 2 Fabricators . | . . . . Repair Stations 2 | . . . 2 Recycling Units 1 | . 1 . . Scanalyzers . | . . . . Garrison Access . | . . . . Total Hacks 13 | . 2 . 11 Successful 9 | . 2 . 7 Failed 4 | . . . 4 Catastrophic . | . . . . Database Lockouts . | . . . . Manual . | . . . . Terminals 7 | . 1 . 6 Fabricators . | . . . . Repair Stations 5 | . . . 5 Recycling Units 1 | . 1 . . Scanalyzers . | . . . . Garrison Access . | . . . . Terminal Hacks 4 | . 1 . 3 Emergency Access Points 1 | . . . 1 Alert Level 1 | . 1 . . Transport Status 1 | . . . 1 Assault Status 1 | . . . 1 Fabricator Hacks . | . . . . Repair Station Hacks 4 | . . . 4 Scan Component 2 | . . . 2 Repair 2 | . . . 2 Recycling Unit Hacks 1 | . 1 . . Report Inventory 1 | . 1 . . Scanalyzer . | . . . . Garrison Access Hacks . | . . . . Unauthorized Hacks . | . . . . Terminals . | . . . . Fabricators . | . . . . Repair Stations . | . . . . Recycling Units . | . . . . Scanalyzers . | . . . . Garrison Access . | . . . . Data Cores Recovered 1 | . 1 . . Used . | . . . . Hacking Detections 5 | . 1 . 4 Full Trace Events 1 | . . . 1 Feedback Events . | . . . . Feedback Blocked . | . . . . Robot Schematics Acquired . | . . . . Robots Built . | . . . . Authchips . | . . . . Time . | . . . . Total Robot Build Rating . | . . . . Part Schematics Acquired . | . . . . Parts Built . | . . . . Authchips . | . . . . Time . | . . . . Total Part Build Rating . | . . . . Parts Repaired 2 | . . . 2 Time 77 | . . . 77 Parts Recycled . | . . . . Recycled Matter . | . . . . Retrieved Matter . | . . . . Retrieved Components . | . . . . Parts Scanalyzed . | . . . . Part Schematics Acquired . | . . . . Parts Damaged . | . . . . Bothacking | -11 -10 -10 -9 ------------ Run | Yrd Mat Min Mat Used RIF Installer . | . . . . Robots Hacked 2 | . 1 . 1 Non-combat . | . . . . Combat 2 | . 1 . 1 Robot Hacks Applied 2 | . 1 . 1 parse_system 2 | . 1 . 1 Relay Couplers Released . | . . . . Fabnet Peak Effective % . | . . . . Robots Rewired . | . . . . Allies Hacked . | . . . . Hacks Repelled . | . . . . Allies | -11 -10 -10 -9 -------- Run | Yrd Mat Min Mat Total Allies . | . . . . Largest Group . | . . . . Highest-Rated Group . | . . . . Highest-Rated Ally . | . . . . Total Orders . | . . . . Ally Attacks . | . . . . Total Damage . | . . . . Kills . | . . . . Allies Corrupted . | . . . . Allies Melted . | . . . . Intel | -11 -10 -10 -9 ------- Run | Yrd Mat Min Mat Robot Analysis Total . | . . . . Derelict Logs Recovered . | . . . . Drone Launches . | . . . . Drone Recoveries . | . . . . Exploration | -11 -10 -10 -9 ------------- Run | Yrd Mat Min Mat Turns Passed 1033 | 40 374 154 465 Spaces Moved 524 | 30 198 111 185 Core 21 | 10 7 . 4 Treads . | . . . . Legs 409 | 20 191 111 87 Wheels . | . . . . Hover . | . . . . Flight 94 | . . . 94 Fastest Speed 50 | 50 120 120 106 Average Speed 120 | 96 122 120 121 Slowest Speed 400 | 120 200 120 400 Overloaded Moves . | . . . . Propulsion Burnouts . | . . . . Robots Hopped . | . . . . Cave-ins Triggered . | . . . . Exploration Rate (%) 24 | 3 41 31 24 Regions Visited 3 Branch Regions 1 Pre-discovered Areas . | . . . . Known Exits Taken 2 | . 1 1 . Unknown Exits Taken 1 | 1 . . . Scrap Searched 1 | . . 1 . Spaces Dug . | . . . . Terrain Destroyed 3 | . . . 3 Melee . | . . . . Projectile . | . . . . AOE 3 | . . . 3 Terrain Rammed . | . . . . Walls Destroyed . | . . . . Machines Disabled . | . . . . Actions | -11 -10 -10 -9 --------- Run | Yrd Mat Min Mat Total 777 | 41 269 121 346 Wait 75 | . . . 75 Move 521 | 29 197 110 185 Hop . | . . . . Pick Up 39 | 7 14 3 15 Fast Attach . | . . . . Attach 23 | 5 9 . 9 Detach . | . . . . Swap 15 | . 5 1 9 Drop 12 | . 3 1 8 Fire 65 | . 38 . 27 Melee 25 | . 2 6 17 Ram . | . . . . Kick 2 | . 1 . 1 Crush . | . . . . Escape Stasis . | . . . . Rewire . | . . . . Trap . | . . . . Miscellaneous . | . . . . Route ------- -11/Scrapyard -10/Materials -10/Mines -9/Materials History --------- Turn | Location | Event 4 | -11/Scrapyard | Discovered new exit (range 16) 41 | -11/Scrapyard | Entered Materials 224 | -10/Materials | Core integrity fell below 50% 248 | -10/Materials | Lost 5 parts (2n3w) 358 | -10/Materials | Discovered new exit (range 8) 413 | -10/Materials | Identified exit to Mines 415 | -10/Materials | Entered Mines 416 | -10/Mines | Assembled infested the area 535 | -10/Mines | Build established: Scavenger-Mutant 556 | -10/Mines | Discovered new exit (range 12) 568 | -10/Mines | Identified exit to Materials 569 | -10/Mines | Entered Materials 569 | -9/Materials | Evolved 2 slots: Propulsion x2 744 | -9/Materials | Repaired Imp. EM Shotgun 897 | -9/Materials | Repaired Lgt. Assault Rifle 1020 | -9/Materials | Core integrity fell below 50% 1029 | -9/Materials | Core integrity fell below 20% 1034 | -9/Materials | Destroyed by G-34 Mercenary with Small Laser Last Messages --------------- Cesium-ion Thruster destroyed. R-06 Scavenger collects Lgt. Ion Engine. K-01 Serf collects debris. G-34 Mercenary destroyed. R-06 Scavenger collects Flight Unit. K-01 Serf collects debris. Cesium-ion Thruster destroyed. K-01 Serf collects debris. S-10 Pest destroyed. Hammer severed. Jacked L-31 Rogue... >>parse_system Reading system data... L-31 Rogue knocked back. Deuterium Engine destroyed. Processing Tank disabled. L-31 Rogue suffers critical hit (Smash). Cesium-ion Thruster destroyed. K-01 Serf collects debris. L-31 Rogue destroyed. Map ----- +----------------------------------------------------+ | #??# #???????????????????????## [R" #? | | ""#??# [ #???????????????????????#" " #? | | ""#??# [ * #???? ??????????????????# * * #? | | ""#??# ""* == #?? ??????????####### #? | | #??# """""[ #?? ??????????# #"="##### | | #??# """"" #?? ???????????# * ! # | | ###??# """"" #?? ???????????# # | | ?????# """ #?? ????????????#^ """^ " ##+# | | ?????# #?? ?????######## """ T # | | ?????# #?? ??????# [[==# """ " # " | | ?????# """ #?? ??????# [[ # ^ # T | | ?????# """"" ####+###????# *# ^ # " | | ?????# """"" ###### ### # | | ?????# """"" ### # "" | | ?????# """ + "" | | ?????# # "" | | ?????# ###### ##+### | | ?????# """ ### #????######+### ## | | ?????# """"" ###+######## # ## | | ?????# """"" % #* g ## # ## | | ?????#???"""" #%"""% ## """ # ##### | | ?????????""" #=""" ! ## """ # #???? | | ?????? #=""" ## """ # #???? | | ?????? #%""" " " ## # #???? | | ??????? *gY="" "R" #############???? | | ?????? #### #k@/Yg""" #???????????????? | | ??????? ???## ### #%!g #???????????????? | | ?????????????#+??## % ############???????????????? | | ??????????????????# #??????????????????????????? | | ??????????????????+ +??????????????????????????? | | ??????????????????# #??????????????????????????? | | ??????????????????# #??????????????????????????? | | ??????????????????# ???????????????????????????? | | ??????????????????# ???????????????????????????? | | ??????????????????# ???????????????????????????? | | ??????????????????# ???????????????????????????? | | ??????????????????# ???????????????????????????? | | ?????????????????? ????????????????????????????? | | ???????????????????? ????????????????????????????? | | ?????????????????????????????????????????????????? | | ?????????????????????????????????????????????????? | | ?????????????????????????????????????????????????? | | ?????????????????????????????????????????????????? | | ?????????????????????????????????????????????????? | | ?????????????????????????????????????????????????? | | ?????????????????????????????????????????????????? | | ?????????????????????????????????????????????????? | | ?????????????????????????????????????????????????? | | ?????????????????????????????????????????????????? | | ?????????????????????????????????????????????????? | +----------------------------------------------------+ Best States ------------- Heat Dissipation 28 Energy Generation 14 Energy Capacity 275 Matter Stores 300 Matter Capacity 300 Sight Range 16 Terrain Scan Density 10 Evasion (%) 55 Targeting Accuracy 6 Item Schematics ----------------- None Robot Schematics ------------------ None Fabricated ------------ Nothing Alien Tech Used ----------------- None Achievements -------------- None Challenges ------------ None Game ------ Seed StealthTargetingSabre Manual? 0 Play Time 00:14:01 Cumulative 5.5 hours Start 2024.04.02 @ 14:15:32 End 2024.04.02 @ 14:29:30 Sessions 1 Manual Loads 0 Difficulty Rogue Special Mode None Game No. 6 Rogue 6 Adventurer 0 Explorer 0 Win Type - Total 0 Types 0/0/0/0/0/0/0/0/0 Lore% 7 Gallery% 14 Achievement% 15 Wizard Run 0 Options --------- Layout 1 ASCII 0 Keyboard 0 Movement Mouse Keybinds 0 Fullscreen 2 Font 24/Smallcaps Map View 50x35 Zoom Use 0% Tactical HUD 0 Map Filters NONE Filters NONE Steam 1 RUN: 30d4c6f2-5a2f-42d3-84c2-ccdb7bbf6476